Cogmind - Beta 15 @@@ ROGUE MODE // 2025.07.19 @ 12:01:44 Player: Duduxx Result: Destroyed by EB-2CT(R) with Subdweller Machine Gun Performance ------------- Evolutions (0) 0 Regions Visited (2) 400 Robots Destroyed (14) 70 Value Destroyed (326) 326 Prototype IDs (0) 0 Alien Tech Used (0) 0 Bonus (0) 0 TOTAL SCORE: 796 Bonus ------- None Cogmind --------- Core Integrity 0/250 Matter 253/300 Energy 74/250 System Corruption 5% Temperature Cool (0) Movement Rolling (100) Location -10/Subcaves Parts ------- > --- POWER (1) -------- Ion Engine > --- PROPULSION (2) --- Compact Wheel Compact Wheel > --- UTILITY (2) ------ Heat Sink Large Storage Unit > --- WEAPON (2) ------- Beam Cannon Beam Cannon > --- INVENTORY (15) --- Structural Scanner Terrain Scanner Targeting Computer Beam Cannon Beam Cannon Peak State ------------ > --- POWER ------------ Ion Engine > --- PROPULSION ------- Light Treads Light Treads > --- UTILITY ---------- Small Storage Unit Large Storage Unit > --- WEAPON ----------- EM Pulse Gun EM Pulse Gun > --- INVENTORY -------- Ion Engine Compact Wheel Compact Wheel Beam Cannon Beam Cannon [Rating: 7] Favorites ----------- Power Ion Engine Engine Ion Engine Propulsion Light Treads Treads Light Treads Wheel Compact Wheel Utility Large Storage Unit Device Heat Sink Storage Large Storage Unit Weapon EM Pulse Gun Energy Gun EM Pulse Gun Energy Cannon Beam Cannon Ballistic Gun Light Assault Rifle Build | -11 -10 -10 ------- Run | Yrd Mat Sub Slots Evolved . | . . . Power . | . . . Propulsion . | . . . Utility . | . . . Weapon . | . . . Parts Attached 18 | 6 8 4 Power 3 | 1 1 1 Engine 3 | 1 1 1 Core . | . . . Reactor . | . . . Propulsion 4 | 2 . 2 Treads 2 | 2 . . Leg . | . . . Wheel 2 | . . 2 Hover . | . . . Flight . | . . . Utility 5 | 1 4 . Device 3 | . 3 . Storage 2 | 1 1 . Processor . | . . . Hackware . | . . . Protection . | . . . Artifact . | . . . Weapon 6 | 2 3 1 Energy Gun 2 | 2 . . Energy Cannon 3 | . 2 1 Ballistic Gun 1 | . 1 . Ballistic Cannon . | . . . Launcher . | . . . Special Weapon . | . . . Impact Weapon . | . . . Slashing Weapon . | . . . Piercing Weapon . | . . . Special Melee Weapon . | . . . Unidentified Prototypes . | . . . Corrupted Parts 1 | . 1 . System Corruption 5 | . 5 . Parts Lost 8 | . 4 4 Power 2 | . 1 1 Propulsion 2 | . . 2 Utility . | . . . Weapon 4 | . 3 1 Highest Loss Streak 4 | . 2 4 To Critical Strikes . | . . . Average Backups 5 | 2 5 8 Power . | . . 1 Propulsion 1 | 1 1 1 Utility 1 | . 1 3 Weapon 1 | . 1 2 Tool/Special . | . . . Unused Backups 7 | . 4 3 Power 1 | . 1 . Propulsion 2 | . 2 . Utility 1 | . . 1 Weapon 3 | . 1 2 Tool/Special . | . . . Average Slot Usage (%) 96 | . 95 98 Engine 14 | . 14 14 Treads 26 | . 28 22 Device 11 | . 10 14 Storage 14 | . 14 14 Energy Gun 13 | . 16 . Energy Cannon 7 | . 5 16 Ballistic Gun 6 | . 4 11 Peak Build Rating 7 | 6 7 7 Average Rating 6 | 5 6 6 On Entrance 4 | . 6 7 Naked Turns . | . . . Heaviest Build 30 | 14 30 30 Greatest Support 40 | 40 40 40 Greatest Overweight (x) . | . . . Average Overweight (x) . | . . . Largest Inventory Capacity 15 | 8 15 15 Average Capacity 12 | 7 13 15 Most Carried 9 | 4 9 9 Average Carried 5 | 2 5 8 Final Capacity 15 | 8 15 15 Final Carried 9 | 4 9 5 Class Distribution -------------------- 100% | Mutant Dominant Class ---------------- Mutant | -10/Materials Mutant | -10/Subcaves Resources | -11 -10 -10 ----------- Run | Yrd Mat Sub Matter Collected 341 | 226 115 . Remotely . | . . . Salvage Created 510 | 106 308 96 Parts 25 | 5 17 3 Haulers Intercepted . | . . . Recyclers Shooed . | . . . Parts Field Recycled . | . . . Retrieved Matter . | . . . Parts Self-Destructed . | . . . Prevented . | . . . Kills | -11 -10 -10 ------- Run | Yrd Mat Sub Combat Hostiles Destroyed 12 | . 10 2 Guns 6 | . 6 . Cannons 4 | . 2 2 AOE 2 | . 2 . Classes Destroyed 5 | 2 2 1 Tunneler 1 | 1 . . Recycler 1 | 1 . . Swarmer 5 | . 5 . Grunt 5 | . 5 . Subdweller 2 | . . 2 Best Kill Streak 3 | 2 3 2 Combat Bots Only 3 | . 3 2 Max Kills in Single Turn 2 | 1 2 1 Gunslinging . | . . . Exploded 2 | . 2 . Melee . | . . . Uniques/NPCs Destroyed . | . . . Combat | -11 -10 -10 -------- Run | Yrd Mat Sub Hostile Shots Fired 107 | . 78 29 Missed 23 | . 16 7 Hits 84 | . 62 22 Projectile 84 | . 62 22 Critical Strikes 1 | . 1 . Damage Taken 1136 | 44 616 476 Core 254 | . 119 135 Absorbed by Shields . | . . . Core Remaining (%) 100 | 100 . . Volleys Fired 59 | 6 41 12 Largest 2 | 2 2 2 Hottest 120 | 80 120 120 Shots Fired 106 | 12 71 23 Gun 68 | 12 51 5 Cannon 38 | . 20 18 Launcher . | . . . Special . | . . . Kinetic 24 | . 19 5 Thermal 38 | . 20 18 Explosive . | . . . Electromagnetic 44 | 12 32 . Robot Hit Streak 8 | 8 5 8 Robot Miss Streak 4 | 1 4 3 Penetration Max . | . . . Secondary Targets . | . . . Shots Hit Robots 62 | 11 37 14 Core Hits 23 | 3 16 4 Critical Kills . | . . . Critical Parts Destroyed 1 | . 1 . Critical Strikes 1 | . 1 . Destroy 1 | . 1 . Melee Attacks . | . . . Impact . | . . . Slashing . | . . . Piercing . | . . . Sneak Attacks . | . . . Combat Hostiles . | . . . Follow-up Attacks . | . . . Damage Inflicted 925 | 196 503 226 Guns 460 | 122 305 33 Cannons 331 | . 138 193 Explosions 128 | 68 60 . Melee . | . . . Ramming 6 | 6 . . Kinetic 152 | . 119 33 Thermal 459 | 68 198 193 Explosive . | . . . Electromagnetic 308 | 122 186 . Impact . | . . . Slashing . | . . . Piercing . | . . . Highest Corruption 5 | . 5 5 Average Corruption 5 | . 5 5 Corruption Purged . | . . . Corruption Blocked . | . . . Effects 9 | . 4 5 Matter Fused 3 | . 1 2 Heat Flow Errors 1 | . . 1 Energy Discharges 1 | . 1 . Data Loss (minor) 1 | . . 1 Misfires 2 | . 2 . Weapon Failures 1 | . . 1 Overload Shots . | . . . Overflow Damage 9 | . 9 . Projectiles 9 | . 9 . Explosions . | . . . Melee . | . . . Knockbacks . | . . . Impact . | . . . Kinetic . | . . . Secondary . | . . . Self-Inflicted Damage 45 | 45 . . Shots 2 | 2 . . Rammed 2 | 2 . . Targets Rammed 2 | 2 . . Kicked . | . . . Crushed . | . . . Highest Temperature 328 | 66 328 128 Average Temperature 85 | 32 94 80 Received Heat Transfer 231 | . 195 36 Effects 3 | . 3 . Interference 2 | . 2 . Damage (minor) 1 | . 1 . Siege Activations . | . . . Martial Activations . | . . . Shielding Activations . | . . . Robots Disrupted . | . . . Combat Hostiles . | . . . Robots Corrupted . | . . . Combat Hostiles . | . . . Parts Fried . | . . . Impact Corruptions . | . . . Robots Melted . | . . . Combat Hostiles . | . . . Parts Melted 1 | . . 1 Heat Transferred 803 | . 396 407 Parts Sabotaged . | . . . Parts Stolen . | . . . Parts Stripped . | . . . Power Chain Reactions 3 | 2 1 . Alert | -11 -10 -10 ------- Run | Yrd Mat Sub Maximum Alert Level . | . . . Low Security (%) 100 | 100 100 . Level 1 . | . . . Level 2 . | . . . Level 3 . | . . . Level 4 . | . . . Level 5 . | . . . High Security . | . . . Max Security . | . . . Peak Influence 121 | 5 121 . Initial . | . . . Average 50 | . 60 . Influence Increases 311 | 10 301 . Destroy 0b10 Robot/C 200 | . 200 . Destroy 0b10 Robot/NC 10 | 10 . . Destroy Leader 40 | . 40 . Destroy Structure 1 | . 1 . Lose Combat Pursuer 60 | . 60 . Influence Decreases 311 | 10 228 73 Entered New Map 36 | . . 36 Time Decay 235 | 10 188 37 Lost Part 40 | . 40 . Squads Dispatched 1 | . 1 . Investigation 1 | . 1 . Extermination . | . . . Reinforcement . | . . . Assault . | . . . Garrison . | . . . Intercept . | . . . Searches Triggered . | . . . Construction Impeded . | . . . Haulers Reinforced . | . . . Active Scanning Responses . | . . . Cargo Convoy Interrupts . | . . . Stealth | -11 -10 -10 --------- Run | Yrd Mat Sub Distress Signals 2 | . 2 . Communications Jammed . | . . . Distress Signals . | . . . Times Spotted 23 | . 19 4 Peak Tracking Total 4 | . 4 4 Tactical Retreats 4 | . 4 . Traps | -11 -10 -10 ------- Run | Yrd Mat Sub Traps Triggered 1 | . 1 . Indirectly . | . . . Trap Hack Attempts . | . . . Triggered . | . . . Disarmed . | . . . Reprogrammed . | . . . Reused . | . . . Traps Extracted . | . . . Installed . | . . . Triggered . | . . . Machines | -11 -10 -10 ---------- Run | Yrd Mat Sub Machines Disabled . | . . . Max in Single Turn . | . . . Machines Repaired . | . . . Machines Dismantled . | . . . Machines Sabotaged . | . . . Overloaded Fab Kills . | . . . Hacking | -11 -10 -10 --------- Run | Yrd Mat Sub Machines Accessed . | . . . Terminals . | . . . Fabricators . | . . . Repair Stations . | . . . Recycling Units . | . . . Scanalyzers . | . . . Garrison Access . | . . . Total Hacks . | . . . Successful . | . . . Failed . | . . . Catastrophic . | . . . Database Lockouts . | . . . Manual . | . . . Terminals . | . . . Fabricators . | . . . Repair Stations . | . . . Recycling Units . | . . . Scanalyzers . | . . . Garrison Access . | . . . Terminal Hacks . | . . . Fabricator Hacks . | . . . Repair Station Hacks . | . . . Recycling Unit Hacks . | . . . Scanalyzer . | . . . Garrison Access Hacks . | . . . Unauthorized Hacks . | . . . Terminals . | . . . Fabricators . | . . . Repair Stations . | . . . Recycling Units . | . . . Scanalyzers . | . . . Garrison Access . | . . . Data Cores Recovered . | . . . Used . | . . . Hacking Detections . | . . . Full Trace Events . | . . . Feedback Events . | . . . Feedback Blocked . | . . . Robot Schematics Acquired . | . . . Robots Built . | . . . Authchips . | . . . Time . | . . . Total Robot Build Rating . | . . . Part Schematics Acquired . | . . . Parts Built . | . . . Authchips . | . . . Time . | . . . Total Part Build Rating . | . . . Parts Repaired . | . . . Time . | . . . Parts Recycled . | . . . Recycled Matter . | . . . Retrieved Matter . | . . . Retrieved Components . | . . . Parts Scanalyzed . | . . . Part Schematics Acquired . | . . . Parts Damaged . | . . . Bothacking | -11 -10 -10 ------------ Run | Yrd Mat Sub Used RIF Installer . | . . . Robots Hacked . | . . . Non-combat . | . . . Combat . | . . . Robot Hacks Applied . | . . . Relay Couplers Released . | . . . Fabnet Peak Effective % . | . . . Robots Rewired . | . . . Allies Hacked . | . . . Hacks Repelled . | . . . Allies | -11 -10 -10 -------- Run | Yrd Mat Sub Total Allies . | . . . Largest Group . | . . . Highest-Rated Group . | . . . Highest-Rated Ally . | . . . Total Orders . | . . . Ally Attacks . | . . . Total Damage . | . . . Kills . | . . . Allies Corrupted . | . . . Allies Melted . | . . . Intel | -11 -10 -10 ------- Run | Yrd Mat Sub Active Infowar (turns) 190 | . 190 . Terrain 94 | . 94 . Structural 96 | . 96 . Robot Analysis Total . | . . . Derelict Logs Recovered 1 | . . 1 Drone Launches . | . . . Drone Recoveries . | . . . Exploration | -11 -10 -10 ------------- Run | Yrd Mat Sub Turns Passed 730 | 102 516 112 Spaces Moved 328 | 45 236 47 Core 3 | 3 . . Treads 325 | 42 236 47 Legs . | . . . Wheels . | . . . Hover . | . . . Flight . | . . . Fastest Speed 50 | 50 160 160 Average Speed 158 | 152 160 160 Slowest Speed 160 | 160 160 160 Overloaded Moves . | . . . Propulsion Burnouts . | . . . Robots Hopped . | . . . Potential Cave-ins . | . . . Cave-ins Triggered . | . . . Exploration Rate (%) 21 | 5 53 7 Regions Visited 2 Branch Regions 1 Pre-discovered Areas . | . . . Known Exits Taken . | . . . Unknown Exits Taken 2 | 1 1 . Scrap Searched . | . . . Spaces Dug . | . . . Terrain Destroyed 1 | . 1 . Melee . | . . . Projectile . | . . . AOE 1 | . 1 . Terrain Rammed . | . . . Walls Destroyed . | . . . Machines Disabled . | . . . Actions | -11 -10 -10 --------- Run | Yrd Mat Sub Total 436 | 62 311 63 Wait 7 | . 7 . Move 327 | 45 235 47 Hop . | . . . Pick Up 14 | 4 10 . Fast Attach 11 | 6 5 . Attach 8 | . 4 4 Detach 4 | . 4 . Swap . | . . . Drop 5 | . 5 . Fire 59 | 6 41 12 Melee . | . . . Ram . | . . . Kick . | . . . Crush 1 | 1 . . Escape Stasis . | . . . Rewire . | . . . Trap . | . . . Miscellaneous . | . . . Route ------- -11/Scrapyard -10/Materials (discovered 4 exits: [*Mat] / [*Min x2] / [*Sub]) -10/Subcaves (discovered 1 exit: [*Mat]) History --------- Turn | Location | Event 13 | -11/Scrapyard | Discovered new exit (range 15) 103 | -11/Scrapyard | Entered Materials 259 | -10/Materials | Discovered new exit (range 8) 304 | -10/Materials | Build established: Mutant 359 | -10/Materials | Discovered new exit (range 10) 521 | -10/Materials | Discovered new exit (range 6) 609 | -10/Materials | Discovered new exit (range 7) 619 | -10/Materials | Entered Subcaves 655 | -10/Subcaves | Discovered new exit (range 16) 691 | -10/Subcaves | Learned Materials non-interactive machine intel 715 | -10/Subcaves | Core integrity fell below 50% 724 | -10/Subcaves | Core integrity fell below 20% 731 | -10/Subcaves | Destroyed by EB-2CT(R) with Subdweller Machine Gun Last Messages --------------- GOAL=ESCAPE 00633_ System corrupted: Heat flow error (+178). 00655_ EXIT=FOUND 00663_ System corrupted: Component data lost. 00691_ Acquired derelict log, extracted data. Data stored: Materials non-interactive machine intel. 00699_ System corrupted: Matter fused (-6). 00702_ Lgt. Treads destroyed. 00709_ System corrupted: Lgt. Assault Rifle jammed. 00710_ Lgt. Treads destroyed. 00712_ Lgt. Assault Rifle destroyed. 00714_ Sub. Power Source melted. 00714_ 6Q-Y6D(R) destroyed. 00719_ System corrupted: Matter fused (-5). 00720_ G7-XGP(R) destroyed. 00723_ Subatomizers dissect the Disposable Heat Sink. 00729_ Ion Engine destroyed. Map ----- +----------------------------------------------------+ | ?????????????????????????????????????????????????? | | ?????????????????????????????????????????????????? | | ?????????????????????????????????????????????????? | | ??########?#########?????????????????????????????? | | ### ### ##???##???????????????????????? | | # ### # ##??????????????????????? | | ?# ## "" ????????????????????? | | ## """"?????????????????????? | | # # # """??????????????????????? | | # # # ? "" ?????????????????????? | | # ? #??????????????????????? | | ## ##????????????????????????? | | ## ### #?????????????????????????? | | # #?#####?????????? ??????????????? | | # ## ## #?????????????? ?????????????? | | ## #############??####???????? ?????????????? | | ?# #?????????????## #??????? ??????????????? | | ?# ######????????# ##????? ??#????????????? | | ?# ######???# #???? #? ?????????????? | | ?## ## ###### #???# # ??????????????? | | ??### # ##?# #???????????????? | | ????# < ##R# #????????????????? | | ?# ## R #????????????????? | | ?## ##### &"# # ###????????????????? | | ??# ###???#### ## ##????????????????????? | | ??# ##????????#"" ## @ #?????????????????????? | | ??###??????????# #### " #??????????????????? | | ???????????????# &"#?? " ???????????????? | | ???????????????## " ? !%&"" #????????????? | | ????????????????###### [ " ###????????????? | | ?????????????????????? *% " #??????????????? | | ?????????????????????? "" #??????????????? | | ?????????????????????? ## "###????????????????? | | ????????????????????? #??# #??????????????????? | | ????????????????????? ???? "??????????????????? | | ????????????????????# ???? "??????????????????? | | ????????????????????###???? ""?????????????????? | | ??????????????????????????? "??????????????????? | | ??????????????????????????? "??????????????????? | | ???????????????????????????? #???????????????????? | | ?????????????????????????????????????????????????? | | ?????????????????????????????????????????????????? | | ?????????????????????????????????????????????????? | | ?????????????????????????????????????????????????? | | ?????????????????????????????????????????????????? | | ?????????????????????????????????????????????????? | | ?????????????????????????????????????????????????? | | ?????????????????????????????????????????????????? | | ?????????????????????????????????????????????????? | | ?????????????????????????????????????????????????? | +----------------------------------------------------+ Best States ------------- Heat Dissipation 35 Energy Generation 10 Energy Capacity 250 Matter Stores 300 Matter Capacity 300 Sight Range 16 Terrain Scan Range 14 Terrain Scan Density 10 Evasion (%) 40 Recoil Reduction 2 Item Schematics ----------------- None Robot Schematics ------------------ None Fabricated ------------ Nothing Repaired ---------- Nothing Alien Tech Used ----------------- None Achievements -------------- None Challenges ------------ None Game ------ Seed SubatomicFlakBuckler Manual? 0 Play Time 00:04:46 Cumulative 120.3 hours Start 2025.07.19 @ 11:57:29 End 2025.07.19 @ 12:01:44 Sessions 1 Manual Loads 0 Difficulty Rogue Special Mode None Game No. 228 Rogue 228 Adventurer 0 Explorer 0 Win Type - Total 0 Types 0/0/0/0/0/0/0/0/0/0 Lore% 31 Gallery% 48 Achievement% 37 Wizard Run 0 Options --------- Layout 1 ASCII 0 Keyboard 1 Movement Arrows Keybinds 0 Fullscreen 2 Font 24/Smallcaps Map View 50x35 Zoom Use 0% Tactical HUD 1 Map Filters NONE Filters NONE Steam 1 RUN: 5c078a33-203d-403e-85f8-a7d695c7058f